[Event "Live Chess"]
[Site "Chess.com"]
[Date "2023.05.20"]
[Round "-"]
[White "Pablo_dmp"]
[Black "KeithArkell"]
[Result "0-1"]
[WhiteElo "1872"]
[BlackElo "2607"]
[TimeControl "300"]
[EndTime "15:09:54 PDT"]
[Termination "KeithArkell won by resignation"]

1. e4 {[%clk 0:04:59.4]} 1... c6 {[%clk 0:04:58.4]} 2. d4 {[%clk 0:04:58.2]}
2... d5 {[%clk 0:04:57.7]} 3. e5 {[%clk 0:04:57.9]} 3... c5 {[%clk 0:04:57]} 4.
dxc5 {[%clk 0:04:57.8]} 4... Nc6 {[%clk 0:04:56]} 5. f4 {[%clk 0:04:56]} 5... e6
{[%clk 0:04:54]} 6. a3 {[%clk 0:04:29.1]} 6... Bxc5 {[%clk 0:04:50.1]} 7. b4
{[%clk 0:04:28.3]} 7... Bb6 {[%clk 0:04:43.7]} 8. Nf3 {[%clk 0:04:26.1]} 8...
Nge7 {[%clk 0:04:33.6]} 9. Bd3 {[%clk 0:04:18]} 9... Nf5 {[%clk 0:04:28.7]} 10.
Qe2 {[%clk 0:04:06.9]} 10... Ncd4 {[%clk 0:04:20.6]} 11. Nxd4 {[%clk 0:04:01.3]}
11... Nxd4 {[%clk 0:04:19.7]} 12. Qg4 {[%clk 0:03:57.5]} 12... g6 {[%clk
0:04:10.6]} 13. Nd2 {[%clk 0:03:55.2]} 13... Bd7 {[%clk 0:04:03.3]} 14. Nf3
{[%clk 0:03:53.3]} 14... Rc8 {[%clk 0:03:57.1]} 15. Bb2 {[%clk 0:03:46.1]} 15...
Nxc2+ {[%clk 0:03:52.4]} 16. Bxc2 {[%clk 0:03:43.7]} 16... Rxc2 {[%clk
0:03:52.3]} 17. Bd4 {[%clk 0:03:40]} 17... Bb5 {[%clk 0:03:48]} 18. Kd1 {[%clk
0:03:33.4]} 18... Qc7 {[%clk 0:03:24.7]} 19. Re1 {[%clk 0:03:21.8]} 19... Ba4
{[%clk 0:03:19.3]} 0-1

[Event "Live Chess"]
[Site "Chess.com"]
[Date "2023.05.20"]
[Round "-"]
[White "LiamClery2020"]
[Black "ranvir123"]
[Result "1-0"]
[WhiteElo "2089"]
[BlackElo "923"]
[TimeControl "300"]
[EndTime "15:10:17 PDT"]
[Termination "LiamClery2020 won on time"]

1. e4 {[%clk 0:04:59.9]} 1... e5 {[%clk 0:04:57.2]} 2. Nc3 {[%clk 0:04:58.9]}
2... Nc6 {[%clk 0:04:55.3]} 3. Bc4 {[%clk 0:04:58.1]} 3... Nf6 {[%clk
0:04:53.7]} 4. d3 {[%clk 0:04:53.4]} 4... Bc5 {[%clk 0:04:51.7]} 5. Nf3 {[%clk
0:04:51.1]} 5... O-O {[%clk 0:04:49.5]} 6. O-O {[%clk 0:04:49.3]} 6... d6 {[%clk
0:04:47.1]} 7. Be3 {[%clk 0:04:48.2]} 7... Bxe3 {[%clk 0:04:44.7]} 8. fxe3
{[%clk 0:04:48.1]} 8... Bg4 {[%clk 0:04:42.2]} 9. h3 {[%clk 0:04:45.6]} 9... Bh5
{[%clk 0:04:41]} 10. Qe2 {[%clk 0:04:44.1]} 10... Nb4 {[%clk 0:04:23.4]} 11. a3
{[%clk 0:04:37.7]} 11... Na6 {[%clk 0:04:20.3]} 12. Bxa6 {[%clk 0:04:36.4]}
12... bxa6 {[%clk 0:04:18.7]} 13. d4 {[%clk 0:04:36.3]} 13... Rb8 {[%clk
0:04:14.9]} 14. dxe5 {[%clk 0:04:34.5]} 14... dxe5 {[%clk 0:04:13.4]} 15. Rad1
{[%clk 0:04:31.4]} 15... Qe7 {[%clk 0:04:08.9]} 16. b4 {[%clk 0:04:29.5]} 16...
Rfd8 {[%clk 0:03:57.6]} 17. Qxa6 {[%clk 0:04:26.1]} 17... Bxf3 {[%clk 0:03:47]}
18. Rxd8+ {[%clk 0:04:22.4]} 18... Rxd8 {[%clk 0:03:39.8]} 19. Rxf3 {[%clk
0:04:22.3]} 19... c5 {[%clk 0:03:16.3]} 20. bxc5 {[%clk 0:04:13.9]} 20... Qxc5
{[%clk 0:03:09.6]} 21. Nd5 {[%clk 0:04:03.8]} 21... Nxe4 {[%clk 0:02:36.6]} 22.
Nb4 {[%clk 0:03:44.2]} 22... Rd1+ {[%clk 0:02:25.9]} 23. Kh2 {[%clk 0:03:42.9]}
23... h6 {[%clk 0:02:11.9]} 24. Qb7 {[%clk 0:03:38.8]} 24... Ng5 {[%clk
0:02:05.7]} 25. Rg3 {[%clk 0:03:32.4]} 25... Qb6 {[%clk 0:01:41.6]} 26. Qxb6
{[%clk 0:03:23.4]} 26... axb6 {[%clk 0:01:40.1]} 27. h4 {[%clk 0:03:14]} 27...
Ne4 {[%clk 0:01:36.4]} 28. Rf3 {[%clk 0:03:12.5]} 28... Nd2 {[%clk 0:01:31]} 29.
Rf2 {[%clk 0:03:11.4]} 29... Ne4 {[%clk 0:01:28.1]} 30. Re2 {[%clk 0:03:09.9]}
30... Rh1+ {[%clk 0:01:15.9]} 31. Kxh1 {[%clk 0:03:04.8]} 31... Ng3+ {[%clk
0:01:14]} 32. Kg1 {[%clk 0:03:04.2]} 32... Nxe2+ {[%clk 0:01:12.8]} 33. Kf2
{[%clk 0:03:04]} 33... Nc3 {[%clk 0:01:06]} 34. Nd3 {[%clk 0:02:58.3]} 34... e4
{[%clk 0:00:54.2]} 35. Ne5 {[%clk 0:02:57.1]} 35... Nb5 {[%clk 0:00:51.5]} 36.
a4 {[%clk 0:02:54.5]} 36... Nd6 {[%clk 0:00:44.2]} 37. Nd7 {[%clk 0:02:51.9]}
37... Nc8 {[%clk 0:00:38]} 38. c4 {[%clk 0:02:49.5]} 38... f5 {[%clk 0:00:34.9]}
39. c5 {[%clk 0:02:44]} 39... bxc5 {[%clk 0:00:32.1]} 40. Nxc5 {[%clk
0:02:43.9]} 40... g5 {[%clk 0:00:28]} 41. a5 {[%clk 0:02:40.9]} 41... gxh4
{[%clk 0:00:26.3]} 42. a6 {[%clk 0:02:40.3]} 42... Kf7 {[%clk 0:00:23]} 43. Nd7
{[%clk 0:02:35.9]} 43... Ke6 {[%clk 0:00:20.1]} 44. Nc5+ {[%clk 0:02:34.6]}
44... Kd6 {[%clk 0:00:18.8]} 45. a7 {[%clk 0:02:30.6]} 45... Nxa7 {[%clk
0:00:16.4]} 46. Nb7+ {[%clk 0:02:29.7]} 46... Kc7 {[%clk 0:00:15.5]} 47. Na5
{[%clk 0:02:27.9]} 47... Kb6 {[%clk 0:00:14.8]} 48. Nc4+ {[%clk 0:02:25.2]}
48... Kc5 {[%clk 0:00:14.2]} 49. Ne5 {[%clk 0:02:24.2]} 49... Kd5 {[%clk
0:00:12.8]} 50. Nf7 {[%clk 0:02:22]} 50... Ke6 {[%clk 0:00:12.2]} 51. Nxh6
{[%clk 0:02:20.1]} 51... Kf6 {[%clk 0:00:11.8]} 52. Ng8+ {[%clk 0:02:18.4]}
52... Kg5 {[%clk 0:00:11.5]} 53. Ne7 {[%clk 0:02:17.7]} 53... Kg4 {[%clk
0:00:10.8]} 54. Nd5 {[%clk 0:02:16.6]} 54... f4 {[%clk 0:00:10.7]} 55. Nxf4
{[%clk 0:02:16]} 55... Kf5 {[%clk 0:00:09.7]} 56. g3 {[%clk 0:02:14.3]} 56...
hxg3+ {[%clk 0:00:08.1]} 57. Kxg3 {[%clk 0:02:13.9]} 57... Ke5 {[%clk
0:00:07.3]} 58. Ne2 {[%clk 0:02:11.9]} 58... Kf5 {[%clk 0:00:06.5]} 59. Nd4+
{[%clk 0:02:10.9]} 59... Ke5 {[%clk 0:00:04.8]} 60. Kf2 {[%clk 0:02:10.8]} 60...
Kd5 {[%clk 0:00:04]} 61. Ke2 {[%clk 0:02:09.9]} 61... Kc4 {[%clk 0:00:02.8]} 62.
Kd2 {[%clk 0:02:09.3]} 62... Nc6 {[%clk 0:00:02.1]} 63. Nxc6 {[%clk 0:02:08.6]}
63... Kd5 {[%clk 0:00:01.3]} 64. Nb4+ {[%clk 0:02:07.2]} 64... Kc4 {[%clk
0:00:00.3]} 65. Nc2 {[%clk 0:02:07.1]} 1-0

[Event "Live Chess"]
[Site "Chess.com"]
[Date "2023.05.20"]
[Round "-"]
[White "LiamBellwood"]
[Black "diana21strabt"]
[Result "1-0"]
[WhiteElo "2076"]
[BlackElo "1694"]
[TimeControl "300"]
[EndTime "15:10:22 PDT"]
[Termination "LiamBellwood won by resignation"]

1. d4 {[%clk 0:04:59.6]} 1... Nf6 {[%clk 0:04:58.1]} 2. Nc3 {[%clk 0:04:59.2]}
2... g6 {[%clk 0:04:57.3]} 3. Bf4 {[%clk 0:04:58.9]} 3... d5 {[%clk 0:04:55.7]}
4. e3 {[%clk 0:04:58.2]} 4... Bg7 {[%clk 0:04:54.5]} 5. h4 {[%clk 0:04:57.6]}
5... e6 {[%clk 0:04:51.8]} 6. Bd3 {[%clk 0:04:52.7]} 6... Nbd7 {[%clk
0:04:49.9]} 7. Nf3 {[%clk 0:04:51.3]} 7... c5 {[%clk 0:04:48.7]} 8. Nb5 {[%clk
0:04:42.2]} 8... Qa5+ {[%clk 0:04:45]} 9. c3 {[%clk 0:04:40.4]} 9... O-O {[%clk
0:04:41.3]} 10. Bd6 {[%clk 0:04:28.6]} 10... Re8 {[%clk 0:04:35.9]} 11. Nc7
{[%clk 0:04:27.3]} 11... c4 {[%clk 0:04:29.4]} 12. Nxe8 {[%clk 0:04:12.3]} 12...
Nxe8 {[%clk 0:04:24.2]} 13. Bb4 {[%clk 0:04:08.4]} 13... Qb6 {[%clk 0:04:19.6]}
14. Be2 {[%clk 0:03:53.5]} 14... a5 {[%clk 0:04:18.1]} 15. Ba3 {[%clk
0:03:52.8]} 15... Qc6 {[%clk 0:04:06.7]} 16. h5 {[%clk 0:03:31.4]} 16... Nef6
{[%clk 0:04:02.7]} 17. hxg6 {[%clk 0:03:30.5]} 17... fxg6 {[%clk 0:04:00.5]} 18.
Be7 {[%clk 0:03:27.7]} 18... Ne4 {[%clk 0:03:58.8]} 19. Bg5 {[%clk 0:03:21.5]}
19... e5 {[%clk 0:03:49.9]} 20. dxe5 {[%clk 0:03:08.2]} 20... Nxe5 {[%clk
0:03:47.8]} 21. Nd4 {[%clk 0:02:45.6]} 21... Qe8 {[%clk 0:03:32.6]} 22. Bf4
{[%clk 0:02:43.1]} 22... Qf7 {[%clk 0:03:20.2]} 23. Nf3 {[%clk 0:02:11.7]} 23...
Nxf3+ {[%clk 0:03:04.4]} 24. Bxf3 {[%clk 0:02:11.6]} 24... Bf5 {[%clk
0:03:01.4]} 25. Bh6 {[%clk 0:01:52.6]} 25... b5 {[%clk 0:02:50.4]} 26. Bxg7
{[%clk 0:01:50.6]} 26... Kxg7 {[%clk 0:02:48.2]} 27. Qd4+ {[%clk 0:01:49.4]}
27... Kg8 {[%clk 0:02:44.8]} 28. Rd1 {[%clk 0:01:41.7]} 28... Rd8 {[%clk
0:02:36.5]} 29. Rf1 {[%clk 0:01:07]} 29... b4 {[%clk 0:02:29.4]} 30. g4 {[%clk
0:01:03.8]} 30... bxc3 {[%clk 0:02:17.1]} 31. bxc3 {[%clk 0:00:58.9]} 31... Qf6
{[%clk 0:02:02.3]} 32. gxf5 {[%clk 0:00:53.8]} 32... Qxd4 {[%clk 0:01:58.5]} 33.
Rxd4 {[%clk 0:00:52.1]} 33... Nxc3 {[%clk 0:01:57.7]} 34. fxg6 {[%clk
0:00:48.9]} 34... hxg6 {[%clk 0:01:56.4]} 35. Kd2 {[%clk 0:00:48.3]} 35... Nxa2
{[%clk 0:01:53.4]} 36. Bxd5+ {[%clk 0:00:46.7]} 36... Rxd5 {[%clk 0:01:48.3]}
37. Rxd5 {[%clk 0:00:44.3]} 37... c3+ {[%clk 0:01:47.4]} 38. Kc2 {[%clk
0:00:43.2]} 38... Nb4+ {[%clk 0:01:46.2]} 39. Kxc3 {[%clk 0:00:42.9]} 39...
Nxd5+ {[%clk 0:01:45.2]} 40. Kc4 {[%clk 0:00:41.9]} 40... Nc7 {[%clk 0:01:38.6]}
41. Ra1 {[%clk 0:00:40.4]} 41... Ne8 {[%clk 0:01:29.3]} 42. Rxa5 {[%clk
0:00:37.9]} 42... Nd6+ {[%clk 0:01:28.5]} 43. Kd5 {[%clk 0:00:37.3]} 43... Nf5
{[%clk 0:01:27.3]} 44. Ke6 {[%clk 0:00:32.8]} 44... Ng7+ {[%clk 0:01:23]} 45.
Kf6 {[%clk 0:00:32]} 45... Kh7 {[%clk 0:01:21.8]} 46. Ra7 {[%clk 0:00:30.6]} 1-0

[Event "Live Chess"]
[Site "Chess.com"]
[Date "2023.05.20"]
[Round "-"]
[White "f4nomore"]
[Black "Jo1ts"]
[Result "1-0"]
[WhiteElo "1416"]
[BlackElo "765"]
[TimeControl "300"]
[EndTime "15:10:58 PDT"]
[Termination "f4nomore won by resignation"]

1. b3 {[%clk 0:04:57.9]} 1... e5 {[%clk 0:04:58]} 2. Bb2 {[%clk 0:04:56.5]} 2...
Nc6 {[%clk 0:04:55.1]} 3. e3 {[%clk 0:04:55.5]} 3... d5 {[%clk 0:04:48.3]} 4.
Bb5 {[%clk 0:04:53.2]} 4... Nf6 {[%clk 0:04:42.5]} 5. Bxc6+ {[%clk 0:04:50.9]}
5... bxc6 {[%clk 0:04:41.4]} 6. Bxe5 {[%clk 0:04:48.9]} 6... Bd6 {[%clk
0:04:29.2]} 7. Bb2 {[%clk 0:04:46]} 7... O-O {[%clk 0:04:26]} 8. Ne2 {[%clk
0:04:44.1]} 8... Bg4 {[%clk 0:04:15.8]} 9. f3 {[%clk 0:04:40.5]} 9... Bh5 {[%clk
0:04:14.6]} 10. O-O {[%clk 0:04:37]} 10... Nd7 {[%clk 0:04:12.2]} 11. Qe1 {[%clk
0:04:31.5]} 11... Re8 {[%clk 0:04:03.8]} 12. f4 {[%clk 0:04:30.3]} 12... Qf6
{[%clk 0:03:57.2]} 13. Bxf6 {[%clk 0:04:27.3]} 1-0

[Event "Live Chess"]
[Site "Chess.com"]
[Date "2023.05.20"]
[Round "-"]
[White "MarkLim1"]
[Black "lightningorderyt"]
[Result "1-0"]
[WhiteElo "1656"]
[BlackElo "519"]
[TimeControl "300"]
[EndTime "15:11:30 PDT"]
[Termination "MarkLim1 won by checkmate"]

1. d4 {[%clk 0:04:58.6]} 1... d6 {[%clk 0:04:57.7]} 2. Nf3 {[%clk 0:04:57.8]}
2... e5 {[%clk 0:04:46.9]} 3. dxe5 {[%clk 0:04:56.4]} 3... Bf5 {[%clk
0:04:39.2]} 4. exd6 {[%clk 0:04:54.7]} 4... Bxd6 {[%clk 0:04:37]} 5. Nc3 {[%clk
0:04:53.5]} 5... Nf6 {[%clk 0:04:34.9]} 6. Bg5 {[%clk 0:04:52.4]} 6... Nc6
{[%clk 0:04:32.9]} 7. Qd2 {[%clk 0:04:49.9]} 7... h6 {[%clk 0:04:29.5]} 8. Bxf6
{[%clk 0:04:48.5]} 8... Qxf6 {[%clk 0:04:28.1]} 9. e3 {[%clk 0:04:47.7]} 9...
O-O-O {[%clk 0:04:19.8]} 10. Bd3 {[%clk 0:04:45]} 10... Bxd3 {[%clk 0:04:05.9]}
11. cxd3 {[%clk 0:04:43.8]} 11... Bb4 {[%clk 0:04:04.5]} 12. O-O {[%clk
0:04:41.4]} 12... Ne5 {[%clk 0:03:39.7]} 13. Nxe5 {[%clk 0:04:32.1]} 13... Qxe5
{[%clk 0:03:36.7]} 14. a3 {[%clk 0:04:26.4]} 14... Bxc3 {[%clk 0:03:33.1]} 15.
bxc3 {[%clk 0:04:25.2]} 15... Qd5 {[%clk 0:03:28.5]} 16. d4 {[%clk 0:04:24]}
16... h5 {[%clk 0:03:20.8]} 17. Qd3 {[%clk 0:04:22.4]} 17... Rh6 {[%clk
0:03:17.7]} 18. c4 {[%clk 0:04:21.5]} 18... Qg5 {[%clk 0:03:12.6]} 19. Rab1
{[%clk 0:04:19.3]} 19... Rg6 {[%clk 0:03:10.3]} 20. g3 {[%clk 0:04:18]} 20... b6
{[%clk 0:03:07.6]} 21. Qe4 {[%clk 0:04:09.1]} 21... h4 {[%clk 0:03:02.7]} 22.
Qa8+ {[%clk 0:04:07]} 22... Kd7 {[%clk 0:03:01.2]} 23. Qxa7 {[%clk 0:04:06.1]}
23... hxg3 {[%clk 0:02:56]} 24. hxg3 {[%clk 0:04:04.6]} 24... Rh8 {[%clk
0:02:52.4]} 25. Qa4+ {[%clk 0:04:00.3]} 25... c6 {[%clk 0:02:49.3]} 26. Rxb6
{[%clk 0:03:57.1]} 26... Qh4 {[%clk 0:02:42.7]} 27. Qa7+ {[%clk 0:03:46.9]}
27... Ke6 {[%clk 0:02:39.6]} 28. d5+ {[%clk 0:03:42.6]} 28... Kf5 {[%clk
0:02:32.7]} 29. Qd7+ {[%clk 0:03:33.3]} 29... Kg5 {[%clk 0:02:27]} 30. f4+
{[%clk 0:03:27]} 30... Kf6 {[%clk 0:02:22.5]} 31. Rxc6# {[%clk 0:03:23.9]} 1-0

[Event "Live Chess"]
[Site "Chess.com"]
[Date "2023.05.20"]
[Round "-"]
[White "LodeshChess"]
[Black "Singapourfeuj"]
[Result "0-1"]
[WhiteElo "1093"]
[BlackElo "2237"]
[TimeControl "300"]
[EndTime "15:11:32 PDT"]
[Termination "Singapourfeuj won by resignation"]

1. e4 {[%clk 0:04:59.2]} 1... e6 {[%clk 0:04:58.1]} 2. d4 {[%clk 0:04:55.9]}
2... d5 {[%clk 0:04:57.3]} 3. e5 {[%clk 0:04:55.3]} 3... c5 {[%clk 0:04:56.3]}
4. c3 {[%clk 0:04:54.8]} 4... Nc6 {[%clk 0:04:55.5]} 5. Nf3 {[%clk 0:04:54.1]}
5... Qb6 {[%clk 0:04:54.5]} 6. Bd3 {[%clk 0:04:52.6]} 6... Bd7 {[%clk
0:04:53.7]} 7. O-O {[%clk 0:04:49.9]} 7... Nh6 {[%clk 0:04:52.7]} 8. Bxh6 {[%clk
0:04:46.6]} 8... gxh6 {[%clk 0:04:51.9]} 9. dxc5 {[%clk 0:04:45.9]} 9... Bxc5
{[%clk 0:04:50.3]} 10. b4 {[%clk 0:04:44.1]} 10... Be7 {[%clk 0:04:49]} 11. Nbd2
{[%clk 0:04:34.8]} 11... O-O-O {[%clk 0:04:46.3]} 12. Nb3 {[%clk 0:04:29.9]}
12... Kb8 {[%clk 0:04:44.6]} 13. a3 {[%clk 0:04:22.2]} 13... f6 {[%clk
0:04:40.6]} 14. Nbd4 {[%clk 0:04:11.3]} 14... fxe5 {[%clk 0:04:38.3]} 15. Nxc6+
{[%clk 0:03:57.9]} 15... Bxc6 {[%clk 0:04:37]} 16. Nxe5 {[%clk 0:03:57.3]} 16...
Bd6 {[%clk 0:04:36.1]} 17. Re1 {[%clk 0:03:53.9]} 17... Qc7 {[%clk 0:04:34.5]}
18. Qh5 {[%clk 0:03:43]} 18... Rhg8 {[%clk 0:04:29.3]} 19. f4 {[%clk 0:03:26.7]}
19... d4 {[%clk 0:04:26.5]} 20. cxd4 {[%clk 0:03:21.3]} 20... Rxg2+ {[%clk
0:04:24.4]} 21. Kf1 {[%clk 0:03:16.4]} 21... Rdg8 {[%clk 0:04:23.1]} 22. Qxh6
{[%clk 0:02:55.1]} 22... Bxe5 {[%clk 0:04:18.8]} 23. fxe5 {[%clk 0:02:51]} 23...
Qf7+ {[%clk 0:04:12.2]} 0-1

[Event "Live Chess"]
[Site "Chess.com"]
[Date "2023.05.20"]
[Round "-"]
[White "laminaaprod"]
[Black "Doge_Dandolo"]
[Result "0-1"]
[WhiteElo "2251"]
[BlackElo "2049"]
[TimeControl "300"]
[EndTime "15:11:47 PDT"]
[Termination "Doge_Dandolo won on time"]

1. d4 {[%clk 0:04:43.3]} 1... d5 {[%clk 0:04:55.7]} 2. c4 {[%clk 0:04:42.6]}
2... c6 {[%clk 0:04:54.7]} 3. Nf3 {[%clk 0:04:41.5]} 3... Nf6 {[%clk 0:04:54.1]}
4. g3 {[%clk 0:04:36.7]} 4... a6 {[%clk 0:04:52.1]} 5. cxd5 {[%clk 0:04:35.2]}
5... cxd5 {[%clk 0:04:48.5]} 6. Bg2 {[%clk 0:04:35.1]} 6... e6 {[%clk
0:04:43.1]} 7. O-O {[%clk 0:04:35]} 7... Be7 {[%clk 0:04:41.4]} 8. Nc3 {[%clk
0:04:26.6]} 8... O-O {[%clk 0:04:39.5]} 9. a4 {[%clk 0:04:20.6]} 9... Bd7 {[%clk
0:04:37.1]} 10. Bf4 {[%clk 0:04:03.9]} 10... Bc6 {[%clk 0:04:32.1]} 11. Ne5
{[%clk 0:03:50]} 11... Nbd7 {[%clk 0:04:17.1]} 12. Nxc6 {[%clk 0:03:39.1]} 12...
bxc6 {[%clk 0:04:14.6]} 13. e4 {[%clk 0:03:39]} 13... Nb6 {[%clk 0:04:07.3]} 14.
b3 {[%clk 0:03:08.5]} 14... Re8 {[%clk 0:03:53.5]} 15. e5 {[%clk 0:02:16.9]}
15... Nfd7 {[%clk 0:03:50.1]} 16. a5 {[%clk 0:01:53.3]} 16... Nc8 {[%clk
0:03:45.4]} 17. Na4 {[%clk 0:01:51.6]} 17... Bb4 {[%clk 0:03:40.9]} 18. Bd2
{[%clk 0:01:33.2]} 18... Bf8 {[%clk 0:03:17.4]} 19. Rc1 {[%clk 0:01:21.2]} 19...
Na7 {[%clk 0:03:09.7]} 20. Nc5 {[%clk 0:00:54.8]} 20... Nxc5 {[%clk 0:03:06.3]}
21. dxc5 {[%clk 0:00:54]} 21... Rb8 {[%clk 0:03:03.3]} 22. b4 {[%clk 0:00:51.5]}
22... Nb5 {[%clk 0:02:56.8]} 23. f4 {[%clk 0:00:48.3]} 23... g6 {[%clk
0:02:48.4]} 24. g4 {[%clk 0:00:46.1]} 24... Re7 {[%clk 0:02:42.7]} 25. Qf3
{[%clk 0:00:42.7]} 25... Reb7 {[%clk 0:02:39.7]} 26. f5 {[%clk 0:00:40.2]} 26...
exf5 {[%clk 0:02:38.1]} 27. gxf5 {[%clk 0:00:39.2]} 27... Qe7 {[%clk 0:02:33.4]}
28. Rce1 {[%clk 0:00:34.6]} 28... Nd4 {[%clk 0:02:28.7]} 29. Qg4 {[%clk
0:00:33.5]} 29... Nb3 {[%clk 0:02:16.3]} 30. Bc3 {[%clk 0:00:26.8]} 30... d4
{[%clk 0:02:12.4]} 31. e6 {[%clk 0:00:23.1]} 31... dxc3 {[%clk 0:02:09.1]} 32.
exf7+ {[%clk 0:00:22.4]} 32... Qxf7 {[%clk 0:02:07.3]} 33. fxg6 {[%clk
0:00:20.7]} 33... Qxg6 {[%clk 0:02:05.9]} 34. Qc4+ {[%clk 0:00:19.7]} 34... Kh8
{[%clk 0:02:03.5]} 35. Qxb3 {[%clk 0:00:18.8]} 35... Bg7 {[%clk 0:01:58.5]} 36.
Re6 {[%clk 0:00:14]} 36... Qd3 {[%clk 0:01:50.9]} 37. Rfe1 {[%clk 0:00:11.3]}
37... Qd4+ {[%clk 0:01:42]} 38. Kh1 {[%clk 0:00:10.1]} 38... Qxb4 {[%clk
0:01:31.8]} 39. Re8+ {[%clk 0:00:08.8]} 39... Bf8 {[%clk 0:01:30.1]} 40. Qc2
{[%clk 0:00:03.4]} 40... Qb2 {[%clk 0:01:20.3]} 41. Qf5 {[%clk 0:00:02.5]} 41...
Rxe8 {[%clk 0:01:14.6]} 42. Rxe8 {[%clk 0:00:01.3]} 42... Qc1+ {[%clk
0:01:12.8]} 43. Bf1 {[%clk 0:00:01]} 43... Qh6 {[%clk 0:01:11]} 44. Rxf8+ {[%clk
0:00:00.9]} 44... Kg7 {[%clk 0:01:08.2]} 0-1

[Event "Live Chess"]
[Site "Chess.com"]
[Date "2023.05.20"]
[Round "-"]
[White "Conradical12"]
[Black "SupremeTactician"]
[Result "0-1"]
[WhiteElo "1601"]
[BlackElo "2367"]
[TimeControl "300"]
[EndTime "15:11:55 PDT"]
[Termination "SupremeTactician won by resignation"]

1. e4 {[%clk 0:04:58.5]} 1... e5 {[%clk 0:04:58.3]} 2. Nf3 {[%clk 0:04:57.2]}
2... Nc6 {[%clk 0:04:57]} 3. Bb5 {[%clk 0:04:56.2]} 3... a6 {[%clk 0:04:56.1]}
4. Ba4 {[%clk 0:04:54.6]} 4... Nf6 {[%clk 0:04:55.7]} 5. O-O {[%clk 0:04:52.5]}
5... Nxe4 {[%clk 0:04:55.3]} 6. Re1 {[%clk 0:04:51.2]} 6... Nc5 {[%clk 0:04:54]}
7. Nxe5 {[%clk 0:04:49.4]} 7... Nxe5 {[%clk 0:04:53.3]} 8. Rxe5+ {[%clk
0:04:47.4]} 8... Be7 {[%clk 0:04:52.6]} 9. Bb3 {[%clk 0:04:39.9]} 9... O-O
{[%clk 0:04:51.1]} 10. Nc3 {[%clk 0:04:37.7]} 10... d6 {[%clk 0:04:50.2]} 11.
Re1 {[%clk 0:04:35.4]} 11... c6 {[%clk 0:04:49.4]} 12. d4 {[%clk 0:04:34.3]}
12... Ne6 {[%clk 0:04:48.3]} 13. d5 {[%clk 0:04:29.5]} 13... Nc5 {[%clk
0:04:45.7]} 14. Ne4 {[%clk 0:04:25.1]} 14... Nxe4 {[%clk 0:04:42.9]} 15. Rxe4
{[%clk 0:04:23.5]} 15... Bf5 {[%clk 0:04:41.9]} 16. Re1 {[%clk 0:04:21.7]} 16...
Bf6 {[%clk 0:04:38.3]} 17. c3 {[%clk 0:04:19.8]} 17... c5 {[%clk 0:04:36.1]} 18.
Bf4 {[%clk 0:04:15.3]} 18... Qd7 {[%clk 0:04:34.1]} 19. Qf3 {[%clk 0:04:12.3]}
19... Bg6 {[%clk 0:04:32]} 20. Qg3 {[%clk 0:04:07.1]} 20... Rad8 {[%clk
0:04:26.8]} 21. Rf1 {[%clk 0:03:57.5]} 21... b5 {[%clk 0:04:21.9]} 22. c4 {[%clk
0:03:55.8]} 22... Rfe8 {[%clk 0:04:16.1]} 23. a4 {[%clk 0:03:52.2]} 23... b4
{[%clk 0:04:12.8]} 24. a5 {[%clk 0:03:51]} 24... Re4 {[%clk 0:04:07.7]} 25. Ba4
{[%clk 0:03:47.5]} 25... Qf5 {[%clk 0:03:57.5]} 26. Bxd6 {[%clk 0:03:34]} 26...
Bh4 {[%clk 0:03:41]} 27. Qf3 {[%clk 0:03:02.3]} 27... Rxd6 {[%clk 0:03:36.6]}
28. Rae1 {[%clk 0:02:56.5]} 28... h6 {[%clk 0:03:24.2]} 29. g3 {[%clk
0:02:50.5]} 0-1

[Event "Live Chess"]
[Site "Chess.com"]
[Date "2023.05.20"]
[Round "-"]
[White "manthanit"]
[Black "ViktorTheCoolBoy"]
[Result "0-1"]
[WhiteElo "1029"]
[BlackElo "2520"]
[TimeControl "300"]
[EndTime "15:12:15 PDT"]
[Termination "ViktorTheCoolBoy won by resignation"]

1. e4 {[%clk 0:04:55.4]} 1... c5 {[%clk 0:04:59.1]} 2. Nf3 {[%clk 0:04:49.3]}
2... Nc6 {[%clk 0:04:58.2]} 3. Bc4 {[%clk 0:04:47.2]} 3... e6 {[%clk 0:04:56.8]}
4. O-O {[%clk 0:04:46.1]} 4... Qc7 {[%clk 0:04:53.7]} 5. Re1 {[%clk 0:04:30.4]}
5... a6 {[%clk 0:04:50.7]} 6. a4 {[%clk 0:04:27.9]} 6... d6 {[%clk 0:04:48.1]}
7. Nc3 {[%clk 0:04:25.8]} 7... Nf6 {[%clk 0:04:46.7]} 8. Bb3 {[%clk 0:04:20.5]}
8... Be7 {[%clk 0:04:44.3]} 9. d4 {[%clk 0:04:15.9]} 9... cxd4 {[%clk
0:04:42.8]} 10. Nxd4 {[%clk 0:04:13.9]} 10... O-O {[%clk 0:04:42.4]} 11. Nxc6
{[%clk 0:03:42.7]} 11... bxc6 {[%clk 0:04:38]} 12. Bf4 {[%clk 0:03:32.9]} 12...
e5 {[%clk 0:04:36.4]} 13. Bg3 {[%clk 0:03:30.7]} 13... a5 {[%clk 0:04:27.6]} 14.
f3 {[%clk 0:03:19.2]} 14... Rb8 {[%clk 0:04:25.6]} 15. Rb1 {[%clk 0:03:10.5]}
15... Nh5 {[%clk 0:04:24.1]} 16. Bf2 {[%clk 0:03:05.9]} 16... Nf4 {[%clk
0:04:21.9]} 17. Ne2 {[%clk 0:03:01.6]} 17... Ne6 {[%clk 0:04:19.8]} 18. Ba2
{[%clk 0:02:56.6]} 18... Kh8 {[%clk 0:04:16.2]} 19. Ng3 {[%clk 0:02:43.7]} 19...
g6 {[%clk 0:04:13]} 20. Ne2 {[%clk 0:02:39.2]} 20... Ba6 {[%clk 0:04:07.6]} 21.
c3 {[%clk 0:02:33.7]} 21... Rb7 {[%clk 0:03:58.2]} 22. b4 {[%clk 0:02:32.1]}
22... axb4 {[%clk 0:03:53.9]} 23. cxb4 {[%clk 0:02:31.2]} 23... Rfb8 {[%clk
0:03:52.3]} 24. b5 {[%clk 0:02:25.6]} 24... cxb5 {[%clk 0:03:49.8]} 25. axb5
{[%clk 0:02:24.6]} 25... Bxb5 {[%clk 0:03:46.6]} 26. Nc3 {[%clk 0:02:17.1]}
26... Bc6 {[%clk 0:03:45.8]} 27. Rxb7 {[%clk 0:02:11.3]} 27... Qxb7 {[%clk
0:03:45.3]} 28. Qd2 {[%clk 0:01:59.3]} 28... Qb2 {[%clk 0:03:39]} 29. Be3 {[%clk
0:01:47.6]} 29... Qxd2 {[%clk 0:03:37.3]} 30. Bxd2 {[%clk 0:01:44.8]} 30... Rb2
{[%clk 0:03:35.8]} 31. Re2 {[%clk 0:01:38.6]} 31... Nd4 {[%clk 0:03:30.1]} 32.
Rf2 {[%clk 0:01:31.3]} 32... Kg7 {[%clk 0:03:26.3]} 33. Be3 {[%clk 0:01:19.1]}
33... Rxf2 {[%clk 0:03:24.6]} 34. Kxf2 {[%clk 0:01:14.6]} 34... Bd8 {[%clk
0:03:22.8]} 35. Bxd4 {[%clk 0:01:01.7]} 35... exd4 {[%clk 0:03:21.8]} 36. Nd5
{[%clk 0:01:00.8]} 36... Bb5 {[%clk 0:03:18.3]} 37. Ke1 {[%clk 0:00:56.6]} 37...
Ba5+ {[%clk 0:03:16.2]} 38. Kd1 {[%clk 0:00:55.6]} 38... d3 {[%clk 0:03:13.6]}
39. Bb1 {[%clk 0:00:54.3]} 39... Ba4+ {[%clk 0:03:11.9]} 40. Kc1 {[%clk
0:00:45.9]} 40... d2+ {[%clk 0:03:10.8]} 0-1